fUSD/lending_fUSD_20250427
["ID","MTS","AMOUNT","RATE_DAILY","PERIOD"]
[359147171,1745741994915,-400.0,0.00019724,2]
[359147172,1745741994936,-400.0,0.00019724,2]
[359147173,1745741994959,-400.0,0.00019724,2]
[359147174,1745741994982,-400.0,0.00019724,2]
[359147175,1745741995003,-513.49012144,0.00019724,2]
[359147176,1745741995025,-400.0,0.00019724,2]
[359147177,1745741995047,-400.0,0.00019724,2]
[359147178,1745741995069,-512.32260398,0.00019724,2]
[359147179,1745741995091,-400.0,0.00019724,2]
[359147180,1745741995112,-416.28,0.00019724,2]
[359147181,1745741995135,-400.0,0.00019724,2]
[359147182,1745741995156,-400.0,0.00019724,2]
[359147183,1745741995179,-1048.97,0.00019724,2]
[359147184,1745741995202,-400.0,0.00019724,2]
[359147185,1745741995224,-506.85103304,0.00019724,2]
[359147186,1745741995245,-178.74868372,0.00019724,2]
[359147187,1745741995266,-400.0,0.00019724,2]
[359147188,1745741995287,-177.04454347,0.00019724,2]
[359147189,1745741995308,-400.0,0.00019724,2]
[359147190,1745741995329,-511.26026673,0.00019724,2]
[359147191,1745741995350,-400.0,0.00019724,2]
[359147192,1745741995372,-400.0,0.00019724,2]
[359147193,1745741995394,-400.0,0.00019724,2]
[359147194,1745741995416,-400.0,0.00019724,2]
[359147195,1745741995437,-400.0,0.00019724,2]
[359147196,1745741995459,-400.0,0.00019724,2]
[359147197,1745741995481,-549.32047752,0.00019724,2]
[359147198,1745741995505,-400.0,0.00019724,2]
[359147199,1745741995531,-400.0,0.00019724,2]
[359147200,1745741995553,-462.57,0.00019724,2]
[359147201,1745741995574,-151.0,0.00019724,2]
[359147202,1745741995597,-400.0,0.00019724,2]
[359147203,1745741995620,-579.18,0.00019724,2]
[359147204,1745741995643,-412.61,0.00019724,2]
[359147205,1745741995667,-400.0,0.00019724,2]
[359147206,1745741995689,-400.0,0.00019724,2]
[359147207,1745741995711,-400.0,0.00019724,2]
[359147208,1745741995733,-400.0,0.00019724,2]
[359147209,1745741995756,-500.0,0.00019724,2]
[359147210,1745741995780,-400.0,0.00019724,2]
[359147211,1745741995803,-400.0,0.00019724,2]
[359147212,1745741995824,-400.0,0.00019724,2]
[359147213,1745741995846,-400.0,0.00019724,2]
[359147214,1745741995868,-400.0,0.00019724,2]
[359147215,1745741995890,-400.58,0.00019724,2]
[359147216,1745741995912,-400.0,0.00019724,2]
[359147217,1745741995934,-1747.93,0.00019724,2]
[359147218,1745741995956,-443.38,0.00019724,2]
[359147219,1745741995982,-400.0,0.00019724,2]
[359147220,1745741996004,-400.0,0.00019724,2]
[359147221,1745741996027,-429.2,0.00019724,2]
[359147222,1745741996049,-400.0,0.00019724,2]
[359147223,1745741996074,-400.0,0.00019724,2]
[359147224,1745741996096,-400.0,0.00019724,2]
[359147225,1745741996121,-400.0,0.00019724,2]
[359147226,1745741996143,-400.0,0.00019724,2]
[359147227,1745741996164,-400.0,0.00019724,2]
[359147228,1745741996185,-400.0,0.00019724,2]
[359147229,1745741996207,-280.77140123,0.00019724,2]
[359147230,1745741996229,-400.0,0.00019724,2]
[359147231,1745741996251,-400.0,0.00019724,2]
[359147232,1745741996273,-500.0,0.00019724,2]
[359147233,1745741996294,-400.0,0.00019724,2]
[359147234,1745741996315,-400.0,0.00019724,2]
[359147235,1745741996337,-472.72,0.00019724,2]
[359147236,1745741996358,-543.34,0.00019724,2]
[359147237,1745741996380,-400.0,0.00019724,2]
[359147238,1745741996402,-400.0,0.00019724,2]
[359147239,1745741996424,-400.0,0.00019724,2]
[359147240,1745741996447,-400.0,0.00019724,2]
[359147241,1745741996469,-400.0,0.00019724,2]
[359147242,1745741996491,-509.73,0.00019724,2]
[359147243,1745741996512,-508.03931921,0.00019724,2]
[359147244,1745741996535,-400.0,0.00019724,2]
[359147245,1745741996556,-506.76178263,0.00019724,2]
[359147246,1745741996579,-400.0,0.00019724,2]
[359147247,1745741996601,-400.0,0.00019724,2]
[359147248,1745741996623,-382.99909785,0.00019724,2]
[359147249,1745741996644,-508.26226056,0.00019724,2]
[359147250,1745741996665,-400.0,0.00019724,2]
[359147251,1745741996686,-400.0,0.00019724,2]
[359147252,1745741996707,-400.0,0.00019724,2]
[359147253,1745741996728,-400.0,0.00019724,2]
[359147254,1745741996750,-409.55,0.00019724,2]
[359147255,1745741996772,-400.0,0.00019724,2]
[359147256,1745741996793,-504.10345167,0.00019724,2]
[359147257,1745741996814,-400.0,0.00019724,2]
[359147258,1745741996838,-559.02,0.00019724,2]
[359147259,1745741996860,-400.0,0.00019724,2]
[359147260,1745741996881,-400.0,0.00019724,2]
[359147261,1745741996902,-400.0,0.00019724,2]
[359147262,1745741996924,-400.0,0.00019724,2]
[359147263,1745741996946,-400.0,0.00019724,2]
[359147264,1745741996968,-516.91,0.00019724,2]
[359147265,1745741996989,-400.0,0.00019724,2]
[359147266,1745741997010,-400.0,0.00019724,2]
[359147267,1745741997033,-400.0,0.00019724,2]
[359147268,1745741997056,-400.0,0.00019724,2]
[359147269,1745741997079,-400.0,0.00019724,2]
[359147270,1745741997099,-400.0,0.00019724,2]
[359147271,1745741997121,-438.77,0.00019724,2]
[359147272,1745741997142,-400.0,0.00019724,2]
[359147273,1745741997164,-400.0,0.00019724,2]
[359147274,1745741997186,-400.0,0.00019724,2]
[359147275,1745741997209,-400.0,0.00019724,2]
[359147276,1745741997230,-400.0,0.00019724,2]
[359147277,1745741997252,-400.0,0.00019724,2]
[359147278,1745741997274,-400.0,0.00019724,2]
[359147279,1745741997297,-400.0,0.00019724,2]
[359147280,1745741997319,-400.0,0.00019724,2]
[359147281,1745741997524,-400.0,0.00019724,2]
[359147282,1745741997547,-400.0,0.00019724,2]
[359147283,1745741997571,-400.0,0.00019724,2]
[359147284,1745741997592,-400.0,0.00019724,2]
[359147285,1745741997613,-433.75,0.00019724,2]
[359147286,1745741997635,-400.0,0.00019724,2]
[359147287,1745741997656,-150.37094209,0.00019724,2]
[359147288,1745741997678,-433.76,0.00019724,2]
[359147289,1745741997699,-500.0,0.00019724,2]
[359147290,1745741997721,-400.0,0.00019724,2]
[359147291,1745741997742,-150.0,0.00019724,2]
[359147292,1745741997763,-496.62,0.00019724,2]
[359147293,1745741997784,-150.0,0.00019724,2]
[359147294,1745741997806,-400.0,0.00019724,2]
[359147295,1745741997828,-538.29403574,0.00019724,2]
[359147296,1745741997849,-400.0,0.00019724,2]
[359147297,1745741997870,-533.05532025,0.00019724,2]
[359147298,1745741997892,-434.93,0.00019724,2]
[359147299,1745741997914,-400.0,0.00019724,2]
[359147300,1745741997937,-500.0,0.00019724,2]
[359147301,1745741997959,-462.67,0.00019724,2]
[359147302,1745741997983,-400.0,0.00019724,2]
[359147303,1745741998004,-400.0,0.00019724,2]
[359147304,1745741998028,-400.0,0.00019724,2]
[359147305,1745741998050,-400.0,0.00019724,2]
[359147306,1745741998074,-400.0,0.00019724,2]
[359147307,1745741998096,-411.40902944,0.00019724,2]
[359147308,1745741998117,-407.48948945,0.00019724,2]
[359147309,1745741998139,-400.0,0.00019724,2]
[359147310,1745741998161,-410.874243,0.00019724,2]
[359147311,1745741998183,-400.0,0.00019724,2]
[359147312,1745741998207,-400.0,0.00019724,2]
[359147313,1745741998229,-400.0,0.00019724,2]
[359147314,1745741998252,-400.0,0.00019724,2]
[359147315,1745741998274,-208.62822862,0.00019724,2]
[359147316,1745741998296,-400.0,0.00019724,2]
[359147317,1745741998318,-400.0,0.00019724,2]
[359147318,1745741998340,-2070.12,0.00019724,2]
[359147319,1745741998363,-400.0,0.00019724,2]
[359147320,1745741998385,-400.0,0.00019724,2]
[359147321,1745741998408,-400.0,0.00019724,2]
[359147322,1745741998431,-400.0,0.00019724,2]
[359147323,1745741998453,-400.0,0.00019724,2]
[359147324,1745741998477,-400.0,0.00019724,2]
[359147325,1745741998500,-641.16,0.00019724,2]
[359147326,1745741998523,-400.0,0.00019724,2]
[359147327,1745741998547,-598.8,0.00019724,2]
[359147328,1745741998569,-400.0,0.00019724,2]
[359147329,1745741998590,-400.0,0.00019724,2]
[359147330,1745741998612,-400.0,0.00019724,2]
[359147331,1745741998635,-500.0,0.00019724,2]
[359147332,1745741998657,-412.84937107,0.00019724,2]
[359147333,1745741998679,-400.0,0.00019724,2]
[359147334,1745741998700,-400.0,0.00019724,2]
[359147335,1745741998722,-400.0,0.00019724,2]
[359147336,1745741998743,-400.0,0.00019724,2]
[359147337,1745741998764,-400.0,0.00019724,2]
[359147338,1745741998785,-400.0,0.00019724,2]
[359147339,1745741998805,-401.80533556,0.00019724,2]
[359147340,1745741998826,-400.0,0.00019724,2]
[359147341,1745741998847,-400.0,0.00019724,2]
[359147342,1745741998869,-402.91,0.00019724,2]
[359147343,1745741998890,-413.5557151,0.00019724,2]
[359147344,1745741998911,-348.90091514,0.00019724,2]
[359147345,1745741998936,-400.0,0.00019724,2]
[359147346,1745741998958,-400.0,0.00019724,2]
[359147347,1745741998980,-436.77,0.00019724,2]
[359147348,1745741999003,-400.0,0.00019724,2]
[359147349,1745741999024,-400.0,0.00019724,2]
[359147350,1745741999045,-400.0,0.00019724,2]
[359147351,1745741999067,-394.0,0.00019724,2]
[359147352,1745741999089,-406.67311597,0.00019724,2]
[359147353,1745741999110,-400.63304332,0.00019724,2]
[359147354,1745741999132,-1260.0,0.00019724,2]
[359147355,1745741999156,-400.0,0.00019724,2]
[359147356,1745741999178,-400.0,0.00019724,2]
[359147357,1745741999199,-400.0,0.00019724,2]
[359147358,1745741999220,-400.0,0.00019724,2]
[359147359,1745741999242,-412.14,0.00019724,2]
[359147360,1745741999263,-407.62259745,0.00019724,2]
[359147361,1745741999284,-400.0,0.00019724,2]
[359147362,1745741999306,-151.0,0.00019724,2]
[359147363,1745741999326,-151.0,0.00019724,2]
[359147364,1745741999348,-151.0,0.00019724,2]
[359147365,1745741999369,-407.92397277,0.00019724,2]
[359147366,1745741999389,-400.0,0.00019724,2]
[359147367,1745741999411,-452.0,0.00019724,2]
[359147368,1745741999432,-431.29,0.00019724,2]
[359147369,1745741999454,-400.0,0.00019724,2]
[359147370,1745741999475,-400.0,0.00019724,2]
[359147371,1745741999497,-400.0,0.00019724,2]
[359147372,1745741999518,-400.0,0.00019724,2]
[359147373,1745741999539,-576.77,0.00019724,2]
[359147374,1745741999560,-400.0,0.00019724,2]
[359147375,1745741999581,-400.0,0.00019724,2]
[359147376,1745741999603,-718.12,0.00019724,2]
[359147377,1745741999624,-400.0,0.00019724,2]
[359147378,1745741999645,-400.0,0.00019724,2]
[359147379,1745741999667,-400.0,0.00019724,2]
[359147380,1745741999687,-405.59598285,0.00019724,2]
[359147381,1745741999709,-2095.13,0.00019724,2]
[359147382,1745741999729,-500.0,0.00019724,2]
[359147383,1745741999749,-400.0,0.00019724,2]
[359147384,1745741999769,-400.0,0.00019724,2]
[359147385,1745741999788,-400.0,0.00019724,2]
[359147386,1745741999808,-400.0,0.00019724,2]
[359147387,1745741999830,-400.0,0.00019724,2]
[359147388,1745741999852,-459.67,0.00019724,2]
[359147389,1745741999873,-400.0,0.00019724,2]
[359147390,1745741999895,-409.47439741,0.00019724,2]
[359147391,1745741999916,-390.0,0.00019724,2]
[359147392,1745741999938,-402.97524739,0.00019724,2]
[359147393,1745741999960,-400.0,0.00019724,2]
[359147394,1745741999985,-402.44910162,0.00019724,2]
[359147395,1745742000008,-425.34,0.00019724,2]
[359147396,1745742000032,-400.0,0.00019724,2]
[359147397,1745742000058,-400.0,0.00019724,2]
[359147398,1745742000082,-400.0,0.00019724,2]
[359147399,1745742000104,-400.0,0.00019724,2]
[359147400,1745742000127,-346.95723844,0.00019724,2]
[359147401,1745742000151,-400.0,0.00019724,2]
[359147402,1745742000174,-400.0,0.00019724,2]
[359147403,1745742000197,-400.0,0.00019724,2]
[359147404,1745742000221,-421.40355906,0.00019724,2]
[359147405,1745742000245,-466.03,0.00019724,2]
[359147406,1745742000268,-400.0,0.00019724,2]
[359147407,1745742000291,-400.0,0.00019724,2]
[359147408,1745742000313,-407.29940459,0.00019724,2]
[359147409,1745742000336,-400.0,0.00019724,2]
[359147410,1745742000361,-400.0,0.00019724,2]
[359147411,1745742000383,-1951.57,0.00019724,2]
[359147412,1745742000404,-400.0,0.00019724,2]
[359147413,1745742000426,-400.0,0.00019724,2]
[359147414,1745742000449,-400.0,0.00019724,2]
[359147415,1745742000471,-400.0,0.00019724,2]
[359147416,1745742000493,-9977.86,0.00019724,2]
[359147417,1745742000515,-400.0,0.00019724,2]
[359147418,1745742000540,-400.0,0.00019724,2]
[359147419,1745742000562,-421.21,0.00019724,2]
[359147420,1745742000583,-400.0,0.00019724,2]
[359147421,1745742000605,-473.79,0.00019724,2]
[359147422,1745742000627,-409.59480983,0.00019724,2]
[359147423,1745742000650,-400.0,0.00019724,2]
[359147424,1745742000672,-400.0,0.00019724,2]
[359147425,1745742000693,-500.0,0.00019724,2]
[359147426,1745742000715,-400.0,0.00019724,2]
[359147427,1745742000737,-503.71,0.00019724,2]
[359147428,1745742000760,-404.6208881,0.00019724,2]
[359147429,1745742000782,-400.0,0.00019724,2]
[359147430,1745742000805,-56266.87,0.00019724,2]
[359147431,1745742000827,-400.0,0.00019724,2]
[359147432,1745742000849,-400.0,0.00019724,2]
[359147433,1745742001018,-453.82,0.00019724,2]
[359147434,1745742001074,-400.0,0.00019724,2]
[359147435,1745742001095,-5720.03,0.00019724,2]
[359147436,1745742001117,-400.0,0.00019724,2]
[359147437,1745742001138,-500.0,0.00019724,2]
[359147438,1745742001159,-2842.52,0.00019724,2]
[359147439,1745742001182,-400.0,0.00019724,2]
[359147440,1745742001205,-400.0,0.00019724,2]
[359147441,1745742001227,-1017.3,0.00019724,2]
[359147442,1745742001249,-400.0,0.00019724,2]
[359147443,1745742001273,-808.64,0.00019724,2]
[359147444,1745742001296,-400.0,0.00019724,2]
[359147445,1745742001319,-400.0,0.00019724,2]
[359147446,1745742001342,-428.62668681,0.00019724,2]
[359147447,1745742001366,-400.0,0.00019724,2]
[359147448,1745742001388,-400.0,0.00019724,2]
[359147449,1745742001411,-150.0,0.00019724,2]
[359147450,1745742001432,-500.0,0.00019724,2]
[359147451,1745742001453,-500.0,0.00019724,2]
[359147452,1745742001476,-151.0,0.00019724,2]
[359147453,1745742001498,-151.0,0.00019724,2]
[359147454,1745742001519,-151.0,0.00019724,2]
[359147455,1745742001540,-500.0,0.00019724,2]
[359147456,1745742001564,-400.0,0.00019724,2]
[359147457,1745742001586,-400.0,0.00019724,2]
[359147458,1745742001607,-400.0,0.00019724,2]
[359147459,1745742001629,-400.0,0.00019724,2]
[359147460,1745742001651,-400.0,0.00019724,2]
[359147461,1745742001673,-400.0,0.00019724,2]
[359147462,1745742001696,-400.0,0.00019724,2]
[359147463,1745742001718,-400.0,0.00019724,2]
[359147464,1745742001741,-400.0,0.00019724,2]
[359147465,1745742001763,-400.0,0.00019724,2]
[359147466,1745742001785,-428.74665801,0.00019724,2]
[359147467,1745742001808,-400.0,0.00019724,2]
[359147468,1745742001830,-150.29645972,0.00019724,2]
[359147469,1745742001852,-1013.67,0.00019724,2]
[359147470,1745742001873,-400.0,0.00019724,2]
[359147471,1745742001894,-150.0,0.00019724,2]
[359147472,1745742001915,-400.0,0.00019724,2]
[359147473,1745742001937,-517.12256964,0.00019724,2]
[359147474,1745742001958,-422.59153786,0.00019724,2]
[359147475,1745742001985,-151.0,0.00019724,2]
[359147476,1745742002008,-400.0,0.00019724,2]
[359147477,1745742002030,-472.24237397,0.00019724,2]
[359147478,1745742002052,-460.9364328,0.00019724,2]
[359147479,1745742002076,-413.14977561,0.00019724,2]
[359147480,1745742002098,-424.87,0.00019724,2]
[359147481,1745742002120,-216.05611277,0.00019725,2]
[359147482,1745742002142,-20624.6771401,0.00019725,2]
[359147483,1745742002166,-500.0,0.00019726,2]
[359147484,1745742002191,-562.95371586,0.00019735,2]
[359147485,1745742002214,-441.97085667,0.00019737,2]
[359147486,1745742002237,-22957.47706094,0.00019739,2]
[359147487,1745742002260,-800.67726905,0.00019747,2]
[359147488,1745742002283,-500.0,0.00019751,2]
[359147489,1745742002304,-150.88420852,0.00019751,2]
[359147490,1745742002327,-150.0,0.00019751,2]
[359147491,1745742002349,-500.0,0.00019751,2]
[359147492,1745742002371,-500.0,0.00019751,2]
[359147493,1745742002392,-150.0,0.00019751,2]
[359147494,1745742002414,-500.0,0.00019751,2]
[359147495,1745742002437,-500.0,0.00019751,2]
[359147496,1745742002460,-500.0,0.00019751,2]
[359147497,1745742002483,-150.0,0.00019751,2]
[359147498,1745742002505,-500.0,0.00019753,2]
[359147499,1745742002527,-332.82212476,0.00019758,2]
[359147500,1745742002549,-3994.0,0.00019768,2]
[359147501,1745742002573,-6196.0,0.00019768,2]
[359147502,1745742002595,-153.0,0.00019768,2]
[359147503,1745742002617,-562.95371586,0.00019768,2]
[359147504,1745742002640,-503.92091242,0.00019773,2]
[359147505,1745742002661,-501.89676257,0.00019773,2]
[359147506,1745742002683,-500.0,0.00019773,2]
[359147507,1745742002705,-500.0,0.00019773,2]
[359147508,1745742002727,-500.0,0.00019773,2]
[359147509,1745742002748,-153.39886937,0.00019773,2]
[359147510,1745742002769,-558.63313616,0.00019773,2]
[359147511,1745742002790,-500.0,0.00019773,2]
[359147512,1745742002811,-503.20345874,0.00019773,2]
[359147513,1745742002833,-500.0,0.00019773,2]
[359147514,1745742002856,-800.67726905,0.00019777,2]
[359147515,1745742002877,-500.0,0.00019779,2]
[359147516,1745742002898,-150.0,0.00019779,2]
[359147517,1745742002920,-500.0,0.00019779,2]
[359147518,1745742002942,-500.0,0.00019779,2]
[359147519,1745742002965,-150.0,0.00019779,2]
[359147520,1745742002987,-503.16734134,0.00019779,2]
[359147521,1745742003009,-500.0,0.00019779,2]
[359147522,1745742003034,-500.0,0.00019779,2]
[359147523,1745742003058,-150.0,0.00019779,2]
[359147524,1745742003081,-500.0,0.00019781,2]
[359147525,1745742003105,-927.262439,0.000198,2]
[359147526,1745742003130,-562.95371586,0.00019801,2]
[359147527,1745742003153,-155.11248832,0.00019806,2]
[359147528,1745742003178,-156.0,0.00019806,2]
[359147529,1745742003203,-500.0,0.00019806,2]
[359147530,1745742003227,-500.0,0.00019806,2]
[359147531,1745742003250,-500.0,0.00019806,2]
[359147532,1745742003274,-210.96582574,0.00019806,2]
[359147533,1745742003298,-800.67726905,0.00019808,2]
[359147534,1745742003320,-3154.03738329,0.00019819,2]
[359147535,1745742003344,-172.21323202,0.00019834,2]
[359147536,1745742003368,-500.0,0.00019834,2]
[359147537,1745742003391,-500.0,0.00019834,2]
[359147538,1745742003417,-562.95371586,0.00019834,2]
[359147539,1745742003442,-800.67726905,0.00019839,2]
[359147540,1745742003465,-3895.1784593,0.00019858,2]
[359147541,1745742003488,-500.0,0.00019861,2]
[359147542,1745742003510,-500.0,0.00019861,2]
[359147543,1745742003533,-719.685,0.00019866,2]
[359147544,1745742003555,-877.0,0.00019866,2]
[359147545,1745742003577,-1135.0,0.00019866,2]
[359147546,1745742003600,-796.0,0.00019866,2]
[359147547,1745742003622,-1098.816,0.00019866,2]
[359147548,1745742003643,-548.0,0.00019866,2]
[359147549,1745742003665,-579.0,0.00019866,2]
[359147550,1745742003689,-2064.0,0.00019866,2]
[359147551,1745742003713,-1447.0,0.00019866,2]
[359147552,1745742003736,-912.0,0.00019866,2]
[359147553,1745742003760,-562.95371586,0.00019867,2]
[359147554,1745742003783,-800.67726905,0.00019869,2]
[359147555,1745742003805,-151.0,0.00019873,2]
[359147556,1745742003827,-151.0,0.00019873,2]
[359147557,1745742003850,-151.0,0.00019873,2]
[359147558,1745742003873,-195.43336016,0.00019886,2]
[359147559,1745742003896,-739.20197703,0.00019886,2]
[359147560,1745742003919,-489.9984165,0.00019887,2]
[359147561,1745742003944,-195.43336015,0.00019888,2]
[359147562,1745742003967,-500.0,0.00019888,2]
[359147563,1745742004005,-500.0,0.00019888,2]
[359147564,1745742004040,-195.43336015,0.00019891,2]
[359147565,1745742004065,-739.20197702,0.00019892,2]
[359147566,1745742004088,-195.43336015,0.00019893,2]
[359147567,1745742004111,-195.43336015,0.00019895,2]
[359147568,1745742004135,-195.43336015,0.00019898,2]
[359147569,1745742004159,-3198.014,0.00019898,2]
[359147570,1745742004183,-739.20197702,0.00019898,2]
[359147571,1745742004208,-37.13047662,0.000199,3]
[359147572,1745742004232,-195.43336015,0.000199,2]
[359147573,1745742004255,-150.0,0.000199,2]
[359147574,1745742004280,-351.4,0.000199,2]
[359147575,1745742004303,-150.0,0.000199,2]
[359147576,1745742004326,-150.0,0.000199,2]
[359147577,1745742004348,-150.0,0.000199,2]
[359147578,1745742004370,-150.0,0.000199,2]
[359147579,1745742004393,-455.14,0.000199,2]
[359147580,1745742004415,-150.0,0.000199,2]
[359147581,1745742004437,-151.89,0.000199,2]
[359147582,1745742004461,-150.0,0.000199,2]
[359147583,1745742004659,-468.03,0.000199,2]
[359147584,1745742004692,-800.67726905,0.000199,2]
[359147585,1745742004715,-462.25,0.000199,2]
[359147586,1745742004738,-2331.32,0.000199,2]
[359147587,1745742004761,-455.14,0.000199,2]
[359147588,1745742004784,-358.93,0.000199,2]
[359147589,1745742004808,-450.63,0.000199,2]
[359147590,1745742004830,-351.4,0.000199,2]
[359147591,1745742004853,-799.84,0.000199,2]
[359147592,1745742004875,-321.03,0.000199,2]
[359147593,1745742004898,-799.84,0.000199,2]
[359147594,1745742004920,-161.95,0.000199,2]
[359147595,1745742004943,-351.4,0.000199,2]
[359147596,1745742004967,-169.461,0.000199,2]
[359147597,1745742004990,-562.95371586,0.000199,2]
[359147598,1745742005013,-799.84,0.000199,2]
[359147599,1745742005035,-10358.11202382,0.000199,2]
[359147600,1745742005060,-4192.2265722,0.000199,2]
[359147601,1745742005082,-373.2162284,0.00019916,2]
[359147602,1745742005104,-628.0,0.00019916,2]
[359147603,1745742005126,-500.0,0.00019973,2]
[359147604,1745742005149,-500.0,0.00019973,2]
[359147605,1745742005172,-500.0,0.00019973,2]
[359147606,1745742005195,-500.0,0.00019973,2]
[359147607,1745742005217,-500.0,0.00019973,2]
[359147608,1745742005240,-500.0,0.00019973,2]
[359147609,1745742005261,-500.0,0.00019973,2]
[359147610,1745742005285,-500.0,0.00019973,2]
[359147611,1745742005307,-500.0,0.00019973,2]
[359147612,1745742005331,-500.0,0.00019973,2]
[359147613,1745742005353,-508.67668768,0.00019973,2]
[359147614,1745742005374,-500.0,0.00019973,2]
[359147615,1745742005396,-1000.0,0.00019985,2]
[359147616,1745742005419,-500.0,0.00019985,2]
[359147617,1745742005443,-500.0,0.00019985,2]
[359147618,1745742005467,-500.0,0.00019985,2]
[359147619,1745742005490,-38237.9498666,0.00019986,2]
[359147620,1745742005512,-31000.4277333,0.00019986,2]
[359147621,1745742005537,-23762.9056,0.00019986,2]
[359147622,1745742005560,-38210.5005333,0.00019986,2]
[359147623,1745742005581,-30990.7224,0.00019986,2]
[359147624,1745742005603,-23770.9442666,0.00019986,2]
[359147625,1745742005626,-10291.6804358,0.00019986,2]
[359147626,1745742005648,-8347.0932587,0.00019986,2]
[359147627,1745742005670,-6402.5060817,0.00019986,2]
[359147628,1745742005692,-17347.0042445,0.00019986,2]
[359147629,1745742005715,-14069.331349,0.00019986,2]
[359147630,1745742005736,-10791.6584534,0.00019986,2]
[359147631,1745742005759,-38184.2149333,0.00019986,2]
[359147632,1745742005781,-30981.9605333,0.00019986,2]
[359147633,1745742005803,-23779.7061333,0.00019986,2]
[359147634,1745742005826,-27041.7658333,0.00019986,2]
[359147635,1745742005848,-26567.8108333,0.00019986,2]
[359147636,1745742005870,-26093.8558333,0.00019986,2]
[359147637,1745742005893,-400.0,0.00019997,2]
[359147638,1745742005914,-400.0,0.00019997,2]
[359147639,1745742005939,-4167.598342,0.00019997,2]
[359147640,1745742005962,-400.0,0.00019997,2]
[359147641,1745742005987,-1627.566898,0.00019997,2]
[359147642,1745742006009,-400.0,0.00019997,2]
[359147643,1745742006032,-400.0,0.00019997,2]
[359147644,1745742006055,-400.0,0.00019997,2]
[359147645,1745742006079,-400.0,0.00019997,2]
[359147646,1745742006101,-400.0,0.00019997,2]
[359147647,1745742006122,-400.0,0.00019997,2]
[359147648,1745742006145,-462.56,0.00019997,2]
[359147649,1745742006168,-400.0,0.00019997,2]
[359147650,1745742006190,-400.0,0.00019997,2]
[359147651,1745742006213,-400.0,0.00019997,2]
[359147652,1745742006237,-400.0,0.00019997,2]
[359147653,1745742006259,-400.0,0.00019997,2]
[359147654,1745742006280,-400.0,0.00019997,2]
[359147655,1745742006302,-400.0,0.00019997,2]
[359147656,1745742006322,-503.4,0.00019997,2]
[359147657,1745742006345,-400.0,0.00019997,2]
[359147658,1745742006367,-400.0,0.00019997,2]
[359147659,1745742006390,-400.0,0.00019997,2]
[359147660,1745742006412,-400.0,0.00019997,2]
[359147661,1745742006435,-400.0,0.00019997,2]
[359147662,1745742006460,-275.7379503,0.00019997,2]
[359147663,1745742006483,-400.0,0.00019997,2]
[359147664,1745742006507,-476.45,0.00019997,2]
[359147665,1745742006530,-262.90713498,0.00019997,2]
[359147666,1745742006553,-400.0,0.00019997,2]
[359147667,1745742006576,-417.05,0.00019997,2]
[359147668,1745742006600,-401.15,0.00019997,2]
[359147669,1745742006623,-400.0,0.00019997,2]
[359147670,1745742006646,-400.0,0.00019997,2]